bitfinex-derivatives/quotes_ETHF0:USTF0_20260308
["timestamp","ask_amount","ask_price","bid_price","bid_amount"]
[1772970533983,0.98950575,1948.4,1947.4,1.80999714]
[1772970534580,0.99578809,1948.4,1947.4,1.80999714]
[1772970534775,0.00628234,1948.4,1947.6,1.80999714]
[1772970534980,0.00628234,1948.4,1947.7,1.80999714]
[1772970537082,1.05322876,1948.7,1947.7,1.80999714]
[1772970537389,6.93755453,1948.7,1947.7,1.80999714]
[1772970538088,6.94116746,1948.7,1947.7,1.80999714]
[1772970539288,0.00361293,1948.7,1947.8,1.80999714]
[1772970540186,1.06138449,1949.2,1948.0,1.80999714]
[1772970540490,1.06138449,1949.2,1948.2,1.80999714]
[1772970541092,1.06800846,1949.2,1948.2,1.80999714]
[1772970541491,1.06231691,1949.0,1948.2,1.80999714]
[1772970541890,1.06231691,1948.8,1948.2,1.80999714]
[1772970542391,6.87178319,1949.0,1948.2,1.80999714]
[1772970542594,1.05820906,1949.0,1948.2,1.80999714]
[1772970544091,1.05609898,1949.1,1948.2,1.80999714]
[1772970544690,0.00662397,1949.2,1948.2,1.80999714]
[1772970547296,0.00662397,1949.2,1948.4,1.81795562]
[1772970547595,0.00662397,1949.2,1948.4,1.82342616]
[1772970547796,1.05707167,1949.2,1948.4,1.82342616]
[1772970548889,0.00662397,1949.2,1948.4,1.82342616]
[1772970550099,1.05454579,1949.2,1948.4,1.82342616]
[1772970550701,0.00662397,1949.2,1948.4,1.82342616]
[1772970555899,0.9843381,1949.2,1948.4,1.82342616]
[1772970556701,0.00662397,1949.2,1948.4,1.82342616]
[1772970557600,0.9872579,1949.2,1948.4,1.82342616]
[1772970558100,0.00662397,1949.2,1948.4,1.82342616]
[1772970559198,0.98739877,1949.2,1948.4,1.82342616]
[1772970559800,0.97945858,1949.0,1948.4,1.82342616]
[1772970560197,0.97962637,1948.8,1948.4,0.00547054]
[1772970560894,0.979629,1949.1,1948.4,1.82342616]
[1772970563805,0.99723993,1949.2,1948.4,1.82342616]
[1772970567810,0.9941051,1949.0,1948.4,0.00547054]
[1772970568314,0.9941051,1949.0,1948.4,1.82342616]
[1772970570515,0.99863709,1948.8,1948.4,0.00547054]
[1772970570813,6.62616426,1948.7,1948.4,0.00547054]
[1772970571215,0.99863709,1948.7,1948.4,0.00547054]
[1772970571918,0.99863709,1948.7,1948.4,1.82342616]
[1772970572622,0.99863709,1948.7,1948.4,0.00547054]
[1772970573124,0.99863709,1948.7,1948.4,1.75090367]
[1772970574321,1.00057142,1949.1,1948.4,1.75090367]
[1772970574623,1.00057142,1949.0,1948.4,1.75090367]
[1772970574921,5.60195428,1948.9,1948.4,1.75090367]
[1772970575123,1.00057142,1948.8,1948.4,1.75090367]
[1772970577021,0.99214788,1949.0,1948.4,1.75090367]
[1772970577224,6.57818772,1949.1,1948.4,1.75090367]
[1772970577425,0.9915097,1949.0,1948.4,1.75090367]
[1772970578920,0.99162026,1948.8,1948.4,1.75090367]
[1772970579125,0.99162026,1948.8,1948.4,0.00547054]
[1772970580226,0.71455335,1948.6,1948.4,0.00547054]
[1772970580418,0.71455335,1948.6,1948.2,1.74543313]
[1772970581329,0.71455335,1948.6,1948.2,1.75126962]
[1772970589441,0.71455335,1948.6,1948.3,1.74543313]
[1772970590740,0.71455335,1948.6,1948.2,15.15425192]
[1772970590942,0.71455335,1948.6,1948.2,1.75126962]
[1772970592843,0.7075924,1949.1,1948.2,1.75126962]
[1772970593138,6.48936637,1949.1,1948.2,1.75126962]
[1772970593342,0.70787479,1949.0,1948.2,1.75126962]
[1772970593643,5.78177397,1948.9,1948.2,1.75126962]
[1772970593841,0.69396479,1948.8,1948.2,1.75126962]
[1772970594239,5.87925602,1948.7,1948.2,1.75126962]
[1772970594545,0.69429053,1949.0,1948.3,1.74543313]
[1772970594939,0.69429053,1948.9,1948.3,1.74543313]
[1772970595244,5.48400284,1948.8,1948.3,1.74543313]
[1772970597243,6.17597143,1948.8,1948.3,1.74543313]
[1772970597938,5.48400284,1948.8,1948.3,1.74543313]
[1772970598947,6.17484213,1948.8,1948.3,1.74543313]
[1772970601145,5.48400284,1948.8,1948.3,1.74543313]
[1772970601448,0.00662397,1949.2,1948.7,1.74543313]
[1772970602645,1.46513049,1949.4,1948.7,1.74543313]
[1772970602845,1.46513049,1949.4,1948.8,1.76254078]
[1772970603846,1.46904349,1949.4,1948.8,1.76254078]
[1772970606952,1.46904349,1949.4,1948.6,15.26086634]
[1772970607157,1.49547508,1949.2,1948.6,13.4029823]
[1772970607356,1.49547508,1949.2,1948.5,15.26086634]
[1772970607551,1.49509992,1949.0,1948.6,1.85788404]
[1772970612551,1.49509992,1949.0,1948.5,1.85788404]
[1772970612752,1.48515646,1948.8,1948.4,15.26086634]
[1772970612960,1.48515646,1948.8,1948.3,1.85788404]
[1772970613157,1.48515646,1948.8,1948.2,1.86372053]
[1772970617162,1.40181046,1948.6,1948.2,1.86372053]
[1772970619065,1.40181046,1948.6,1948.2,0.00583649]
[1772970620467,1.39060876,1948.4,1948.2,0.00583649]
[1772970620665,1.39060876,1948.4,1948.1,1.28524399]
[1772970621666,1.83111963,1949.0,1948.1,1.28897472]
[1772970622067,1.83111963,1948.9,1948.1,1.28897472]
[1772970622371,1.83111963,1948.7,1948.1,1.28897472]
[1772970622666,5.35404251,1948.6,1948.1,1.28897472]
[1772970622866,1.83111963,1948.5,1948.1,1.28897472]
[1772970623865,1.83111963,1949.3,1948.1,1.28897472]
[1772970624060,1.83111963,1949.1,1948.1,1.28897472]
[1772970624264,1.83111963,1948.9,1948.1,1.28897472]
[1772970624668,1.83111963,1948.7,1948.1,1.28897472]
[1772970625065,7.71611814,1948.6,1948.1,1.28897472]
[1772970625467,7.63979413,1948.7,1948.1,1.28897472]
[1772970625666,1.83111963,1948.7,1948.1,1.28897472]
[1772970625971,7.63979413,1948.6,1948.1,1.28897472]
[1772970626371,1.83111963,1948.6,1948.1,1.28897472]
[1772970642287,1.83111963,1948.6,1948.2,1.91039656]
[1772970642682,1.83111963,1948.6,1948.1,15.31710959]
[1772970643185,1.83111963,1948.6,1948.1,1.91412729]
[1772970643586,0.25667,1948.2,1947.0,34.50231132]
[1772970643782,5.34349767,1948.5,1946.0,1.94333333]
[1772970643783,0.25668,1948.0,1946.0,1.94333333]
[1772970643986,0.25671,1947.8,1946.3,1.94333333]
[1772970644177,1.89274167,1947.6,1946.4,25.51700306]
[1772970644377,1.89274167,1947.4,1946.4,25.20980621]
[1772970644582,1.89651572,1947.4,1946.4,0.0066314]
[1772970644786,2.14953167,1947.2,1945.9,1.95049504]
[1772970645193,1.59260767,1947.0,1946.1,2.10740916]
[1772970645488,5.59440622,1946.9,1946.1,2.10740916]
[1772970645785,1.43884589,1946.8,1946.1,2.11284992]
[1772970645985,1.43884589,1946.8,1946.2,25.20980621]
[1772970646184,1.43884589,1946.6,1946.2,25.20980621]
[1772970646586,1.4520201,1946.4,1946.2,25.20980621]
[1772970646786,1.4520201,1946.4,1946.2,23.54298059]
[1772970647685,1.50337991,1946.7,1946.3,2.15116357]
[1772970648085,5.52814284,1946.6,1946.3,2.15116357]
[1772970648491,7.1376814,1946.6,1946.3,2.15116357]
[1772970648791,1.60953856,1946.5,1945.8,2.15238714]
[1772970648990,7.28766105,1946.5,1945.8,2.15238714]
[1772970649289,1.60953856,1946.4,1945.8,2.15238714]
[1772970649491,1.87971915,1946.2,1945.9,23.54298059]
[1772970649686,1.87971915,1946.2,1945.9,0.00621278]
[1772970649889,5.3714418,1946.1,1945.9,0.00621278]
[1772970650289,0.16429618,1946.0,1945.4,2.95317977]
[1772970650487,0.16429618,1946.0,1945.5,21.09472643]
[1772970650797,6.722,1946.4,1945.6,2.95427189]
[1772970651094,5.95526252,1946.3,1945.6,2.95427189]
[1772970651291,5.96164218,1946.3,1945.6,2.96031014]
[1772970651988,7.85438385,1946.3,1945.7,21.09472643]
[1772970652194,1.89274167,1946.2,1945.8,1.91039656]
[1772970652888,1.89912133,1946.3,1945.8,1.91039656]
[1772970653088,1.89912133,1946.3,1945.9,23.00512299]
[1772970653288,7.74427539,1946.2,1945.9,1.91039656]
[1772970653686,7.74427539,1946.2,1946.1,1.91039656]
[1772970653687,3.92370457,1946.2,1946.1,1.91039656]
[1772970653889,1.89274167,1946.6,1945.8,1.91039656]
[1772970654392,1.89274167,1946.5,1945.8,1.91039656]
[1772970654787,1.89274167,1946.3,1945.9,23.00512299]
[1772970654994,1.89872059,1946.3,1945.9,1.91039656]
[1772970655189,5.62077908,1946.5,1946.1,1.91039656]
[1772970655388,1.89274167,1946.6,1946.1,1.91039656]
[1772970656194,1.89706559,1946.6,1946.1,1.91039656]
[1772970656691,1.89706559,1946.6,1946.2,21.09472643]
[1772970656993,1.89706559,1946.6,1946.3,1.91039656]
[1772970657490,1.89706559,1946.6,1946.2,20.19558978]
[1772970657691,1.89274167,1946.4,1946.2,19.62158979]
[1772970660290,1.89274167,1946.8,1946.3,1.91039656]
[1772970660495,1.89274167,1946.7,1946.3,1.91039656]
[1772970660692,5.94086707,1946.6,1946.3,1.91039656]
[1772970661086,1.89274167,1946.7,1946.3,1.91039656]
[1772970661287,8.61574167,1946.8,1946.4,21.53198635]
[1772970661491,5.49654554,1946.6,1946.4,1.91039656]
[1772970661692,2.84732553,1946.7,1946.6,1.91039656]
[1772970661893,3.25784568,1947.0,1946.6,1.91039656]
[1772970662093,3.25784568,1947.0,1946.7,19.62158979]
[1772970662289,8.75439122,1947.0,1946.7,19.62158979]
[1772970662495,3.27247972,1946.9,1946.7,19.62158979]
[1772970662894,3.27895769,1946.9,1946.7,19.62158979]
[1772970663398,3.62892909,1946.7,1946.0,0.99159422]
[1772970663594,3.62892909,1946.7,1946.1,0.99159422]
[1772970664198,10.35092909,1946.7,1946.1,0.99159422]
[1772970664994,6.722,1946.7,1946.3,1.05561653]
[1772970665897,6.722,1946.7,1946.4,19.8417824]
[1772970666100,6.722,1946.7,1946.4,1.05744659]
[1772970666498,6.722,1946.7,1946.5,19.83718898]
[1772970666695,3.5294835,1946.9,1946.5,1.05285317]
[1772970666897,10.2514835,1946.9,1946.6,18.78433581]
[1772970667299,3.5294835,1946.9,1946.6,18.78433581]
[1772970667600,3.5294835,1946.9,1946.6,19.81851522]
[1772970667993,3.5294835,1946.9,1946.6,18.78433581]
[1772970668694,3.52300553,1946.7,1946.6,18.09985206]
[1772970668901,3.52300553,1946.7,1946.6,16.54729632]
[1772970669701,3.52300553,1947.6,1946.7,2.70629308]
[1772970670000,3.52300553,1947.8,1946.8,2.70629308]
[1772970670196,10.24500553,1948.0,1947.0,2.70629308]
[1772970670503,3.52300553,1948.2,1947.0,2.70629308]
[1772970670700,10.24960168,1948.2,1947.2,1.94213009]
[1772970670900,3.52300553,1948.1,1947.3,1.94213009]
[1772970674301,0.27447797,1948.0,1947.4,16.54729632]
[1772970674501,3.52300553,1947.9,1947.5,1.89851861]
[1772970674901,0.27447797,1947.8,1947.5,1.89851861]
[1772970675402,3.52300553,1947.9,1947.5,1.89851861]
[1772970675606,3.52300553,1947.9,1947.6,18.43734697]
[1772970675905,3.52300553,1947.9,1947.5,1.89005065]
[1772970676296,3.52300553,1948.1,1947.6,18.4329304]
[1772970676498,3.52300553,1948.1,1947.6,1.88563408]
[1772970676704,3.7974835,1948.1,1947.6,1.88563408]
[1772970677906,3.52300553,1947.8,1947.7,14.94753417]
[1772970678106,3.52300553,1947.8,1947.3,1.86923664]
[1772970679411,3.52300553,1947.8,1947.4,14.48609296]
[1772970679610,3.52300553,1947.8,1947.3,3.59942509]
[1772970680106,0.00459615,1948.2,1947.5,3.59942509]
[1772970680411,3.52300553,1948.0,1947.5,3.59942509]
[1772970681113,3.7974835,1948.0,1947.5,3.59942509]
[1772970681305,3.52300553,1948.0,1947.5,3.59942509]
[1772970681505,3.7974835,1948.0,1947.5,3.59942509]
[1772970682809,3.52760168,1948.2,1947.7,3.62830685]
[1772970686112,3.52760168,1948.2,1947.9,3.61430159]
[1772970687014,3.52300553,1948.3,1948.0,3.60965774]
[1772970687314,9.08011921,1948.2,1947.9,18.0957507]
[1772970687613,9.08011921,1948.3,1948.0,3.60434827]
[1772970688114,3.52777257,1948.3,1948.0,3.60434827]
[1772970688510,3.52777257,1948.3,1947.9,14.48609296]
[1772970688511,3.52777257,1948.3,1947.7,3.59985213]
[1772970688809,3.52300553,1948.1,1947.1,3.59985213]
[1772970690311,5.95082868,1948.0,1947.3,3.57924258]
[1772970690615,3.52300553,1947.9,1947.3,3.57924258]
[1772970695721,3.52300553,1947.9,1947.4,18.25842437]
[1772970695914,3.52300553,1947.9,1947.4,3.77233141]
[1772970700822,3.52300553,1947.9,1947.5,14.48609296]
[1772970701022,3.52300553,1947.9,1947.5,18.25245153]
[1772970702825,0.00476704,1948.3,1947.6,3.7547137]
[1772970702826,3.65578288,1948.3,1947.6,3.7547137]
[1772970705528,3.65101584,1948.1,1947.7,14.48609296]
[1772970705928,3.65101584,1948.1,1947.7,18.23037172]
[1772970706831,3.65101584,1948.2,1947.8,3.73818908]
[1772970708024,3.65578288,1948.3,1948.0,3.71919294]
[1772970708424,3.65578288,1948.3,1947.3,3.71296651]
[1772970709828,3.65578288,1948.3,1947.5,3.7006201]
[1772970714331,3.65578288,1948.3,1947.7,3.64455592]
[1772970715931,6.74151,1949.3,1947.9,3.63904714]
[1772970716132,3.65101584,1949.1,1947.9,3.63904714]
[1772970716530,3.65101584,1948.9,1947.9,3.63904714]
[1772970716734,3.65101584,1948.9,1948.1,3.63248127]
[1772970716933,3.65101584,1948.7,1948.1,3.63248127]
[1772970717133,3.65101584,1948.7,1948.2,18.11857423]
[1772970717333,3.65101584,1948.7,1948.2,3.63248127]
[1772970717733,3.65101584,1948.7,1947.7,3.6262784]
[1772970718231,3.65101584,1948.7,1947.9,3.6262784]
[1772970718634,3.65101584,1948.7,1948.1,3.61963072]
[1772970721540,3.65718827,1948.9,1948.3,3.63636207]
[1772970722237,3.65101584,1949.3,1948.5,3.63636207]
[1772970722938,3.65101584,1949.3,1948.7,3.63666481]
[1772970723443,3.65688692,1949.3,1948.7,3.64294503]
[1772970724138,3.65688692,1949.3,1948.8,14.48609296]
[1772970724339,3.68247459,1949.1,1948.8,14.48609296]
[1772970724535,3.68247459,1949.1,1948.1,3.82660385]
[1772970724737,0.00587108,1949.3,1948.1,3.82660385]
[1772970724738,3.68247459,1948.9,1948.1,3.82660385]
[1772970724933,3.68247459,1948.9,1948.3,3.82660385]
[1772970725635,3.68247459,1948.9,1948.5,3.82660385]
[1772970726033,3.68247459,1948.9,1948.4,3.82660385]
[1772970726332,3.68247459,1948.9,1948.6,9.79554225]
[1772970726537,3.68247459,1948.9,1948.4,9.79554225]
[1772970726733,3.68247459,1948.7,1948.4,5.54703968]
[1772970728139,3.68247459,1948.7,1948.4,9.37364353]
[1772970728334,3.68247459,1948.7,1948.4,3.82660385]
[1772970728739,3.68247459,1948.7,1948.3,3.83213474]
[1772970728938,3.68247459,1948.7,1948.4,5.54703968]
[1772970730233,3.36457792,1948.7,1948.4,5.54703968]
[1772970731937,3.36457792,1948.7,1948.4,3.85036582]
[1772970735341,3.36457792,1948.7,1948.4,7.67696967]
[1772970735643,3.68247459,1948.5,1947.6,3.82660385]
[1772970735845,3.68247459,1948.5,1947.7,3.82660385]
[1772970736142,3.68247459,1948.3,1947.7,3.82660385]
[1772970736339,3.68247459,1948.3,1947.9,3.82660385]
[1772970736540,3.68247459,1948.3,1947.9,3.83121528]
[1772970738641,3.68247459,1949.2,1947.9,3.83121528]
[1772970738847,3.68247459,1949.0,1948.1,3.82660385]
[1772970739147,3.68247459,1948.8,1948.1,3.82660385]
[1772970739445,3.68247459,1948.6,1948.2,7.68250056]
[1772970739746,3.68247459,1948.6,1948.2,3.82660385]
[1772970740646,3.68247459,1948.6,1948.3,7.67696967]
[1772970740851,3.68247459,1949.1,1948.5,3.82660385]
[1772970741345,3.68247459,1948.9,1948.1,3.82660385]
[1772970743551,3.68247459,1949.2,1948.3,3.82660385]
[1772970743849,3.68247459,1949.1,1948.3,3.82660385]
[1772970744641,3.68834567,1949.3,1948.5,3.82660385]
[1772970747051,3.68834567,1949.3,1948.6,3.85589671]
[1772970747253,3.68834567,1949.3,1948.7,3.82660385]
[1772970747951,3.68834567,1949.3,1948.9,3.82660385]
[1772970748353,0.00587108,1949.3,1948.9,3.82660385]
[1772970748553,3.68834567,1949.3,1948.9,3.82660385]
[1772970749349,0.00587108,1949.3,1948.9,3.82660385]
[1772970749549,3.68834567,1949.3,1949.0,3.85589671]
[1772970749949,3.68834567,1949.3,1949.0,7.68250056]
[1772970750355,3.68834567,1949.3,1949.0,3.85589671]
[1772970752158,3.68834567,1949.3,1948.7,3.82660385]
[1772970753557,4.18156099,1949.1,1948.1,3.79043374]
[1772970756162,4.18743207,1949.3,1948.1,3.79043374]
[1772970756561,4.18156099,1949.1,1948.1,3.79043374]
[1772970761664,4.18156099,1949.1,1948.3,3.79043374]
[1772970764064,0.00587108,1949.3,1948.3,3.79043374]
[1772970764558,4.18743207,1949.3,1948.3,3.79043374]
[1772970766161,4.18156099,1949.7,1948.3,4.04707374]
[1772970766366,4.18156099,1949.7,1948.5,3.79043374]
[1772970766566,9.89813111,1949.8,1948.5,3.79043374]
[1772970766769,4.18156099,1949.8,1948.5,3.79043374]
[1772970766963,4.18156099,1949.8,1948.5,19.79501976]
[1772970767163,4.18813003,1949.8,1948.6,3.79043374]
[1772970767462,4.18813003,1949.8,1948.8,3.79043374]
[1772970770566,0.00656904,1949.8,1948.8,3.79043374]
[1772970771062,0.00656904,1949.8,1948.8,4.04700374]
[1772970771261,4.18156099,1950.1,1948.8,4.04700374]
[1772970771262,4.18156099,1950.1,1949.0,3.79043374]
[1772970772168,4.18796359,1950.1,1949.0,3.79043374]
[1772970772562,4.18796359,1950.1,1949.0,44.59043374]
[1772970772762,4.18796359,1950.1,1949.1,3.79043374]
[1772970772956,4.18796359,1950.1,1949.3,3.79043374]
[1772970773163,4.18796359,1950.1,1949.3,3.79554442]
[1772970776366,4.18796359,1950.1,1949.5,3.79043374]
[1772970776968,4.18156099,1949.9,1949.4,3.79043374]
[1772970778967,4.18156099,1949.9,1949.3,3.79554442]
[1772970780566,4.18156099,1949.9,1949.3,0.00511068]
[1772970782368,4.18156099,1949.9,1949.3,3.79554442]
[1772970784268,4.18156099,1949.9,1949.3,0.00511068]
[1772970784669,4.18156099,1949.9,1949.0,4.04886919]
[1772970785673,4.18156099,1949.9,1949.0,4.05275328]
[1772970793276,0.0064026,1950.1,1949.0,4.05275328]
[1772970793676,3.84528288,1950.1,1949.0,4.05275328]
[1772970795682,0.0064026,1950.1,1949.0,4.05275328]
[1772970796178,0.0064026,1950.1,1949.2,4.04886919]
[1772970796577,0.0064026,1950.1,1949.3,4.04886919]
[1772970796980,3.84528288,1950.1,1949.3,4.04886919]
[1772970797778,0.0064026,1950.1,1949.3,4.04886919]
[1772970797972,4.61418021,1950.5,1949.3,4.46762243]
[1772970798177,4.61418021,1950.5,1949.5,4.04886919]
[1772970798382,4.61418021,1950.5,1949.7,4.04886919]
[1772970798983,4.61968152,1950.5,1949.7,4.04886919]
[1772970799877,3.83888028,1950.3,1949.7,4.04886919]
[1772970801486,3.83888028,1950.1,1949.4,4.04886919]
[1772970803785,3.83888028,1950.3,1949.4,4.04886919]
[1772970804181,3.83888028,1950.1,1949.4,4.04886919]
[1772970816688,0.78080124,1950.5,1949.4,4.04886919]
[1772970816894,4.62587544,1950.5,1949.4,4.04886919]
[1772970826906,4.62587544,1950.5,1949.6,3.67512672]
[1772970839315,4.62587544,1950.5,1949.8,3.67512672]
[1772970839614,4.62587544,1950.5,1949.8,22.66912672]
[1772970840215,4.62587544,1950.5,1949.9,3.67512672]
[1772970846212,0.78080124,1950.5,1949.9,3.67512672]
[1772970846614,4.34957414,1950.5,1949.9,3.67512672]
[1772970847721,0.78080124,1950.5,1949.9,3.67512672]
[1772970847915,0.78080124,1950.5,1950.0,3.68466273]
[1772970848117,3.56038022,1950.9,1950.0,3.68466273]
[1772970849114,3.56669562,1950.9,1950.0,3.68466273]
[1772970850325,3.56669562,1950.9,1950.1,3.68466273]
[1772970855223,0.0063154,1950.9,1950.1,3.68466273]
[1772970861239,0.0063154,1950.9,1950.2,3.68466273]
[1772970861438,0.0063154,1950.9,1950.4,3.68466273]
[1772970861739,3.76103652,1951.1,1950.4,3.68930086]
[1772970862536,3.76483162,1951.1,1950.4,3.68930086]
[1772970863644,0.2090951,1951.1,1950.4,3.68930086]
[1772970865235,3.49295412,1951.4,1950.4,3.68930086]
[1772970865739,3.66935848,1951.8,1950.6,3.68466273]
[1772970866045,3.66935848,1951.8,1950.7,3.68466273]
[1772970866346,3.67545716,1951.8,1950.9,3.68466273]
[1772970866736,0.00609868,1951.8,1950.9,3.68466273]
[1772970866943,3.67545716,1951.8,1950.9,3.68466273]
[1772970872647,0.00609868,1951.8,1950.9,3.68466273]
[1772970874244,0.00609868,1951.8,1951.1,3.67596319]
[1772970876956,3.40705086,1951.8,1951.1,3.67596319]
[1772970877657,0.00609868,1951.8,1951.1,3.67596319]
[1772970878161,0.00609868,1951.8,1951.1,4.08458649]
[1772970880758,3.20912025,1952.3,1951.1,4.08458649]
[1772970881658,3.20912025,1952.3,1951.3,3.67596319]
[1772970881962,3.21361584,1952.3,1951.3,3.67596319]
[1772970883962,3.17679245,1952.1,1951.3,3.67596319]
[1772970884259,5.54264939,1952.0,1951.1,3.67596319]
[1772970884462,3.17679245,1951.9,1951.0,22.78496319]
[1772970884766,3.16764977,1951.7,1951.0,18.24762449]
[1772970885062,3.16764977,1951.5,1951.0,18.24762449]
[1772970886553,3.16764977,1951.5,1951.1,3.67596319]
[1772970886760,3.16764977,1951.5,1951.0,21.92358768]
[1772970889260,3.16764977,1951.5,1951.1,3.67596319]
[1772970890062,3.16764977,1951.5,1951.0,21.92358768]
[1772970892366,3.16764977,1951.5,1951.1,3.67596319]
[1772970896163,3.16764977,1951.5,1951.0,18.24762449]
[1772970896469,3.16764977,1951.5,1951.0,21.92358768]
[1772970897170,3.16764977,1951.5,1951.1,3.67596319]
[1772970900669,10.12,1952.1,1951.1,3.67596319]
[1772970900874,2.93422789,1952.2,1951.1,3.67596319]
[1772970901271,8.49920919,1952.2,1951.1,3.67596319]
[1772970902469,2.88494627,1952.3,1951.1,3.67596319]
[1772970902674,2.88494627,1952.3,1951.2,3.47785941]
[1772970902973,0.00449559,1952.3,1951.3,3.47785941]
[1772970903164,0.00449559,1952.3,1951.5,3.47785941]
[1772970904276,2.89100202,1952.3,1951.7,3.5606435]
[1772970904477,2.89100202,1952.3,1951.2,3.5606435]
[1772970904673,2.87777187,1952.1,1951.4,3.5606435]
[1772970904976,2.87777187,1952.1,1951.5,22.6996435]
[1772970905275,2.87777187,1952.1,1951.5,19.139]
[1772970906475,2.87777187,1952.1,1951.0,3.5606435]
[1772970906678,2.85867422,1951.9,1951.1,3.5606435]
[1772970907075,2.85867422,1951.7,1951.1,3.5606435]
[1772970909874,2.85867422,1951.7,1950.9,3.5606435]
[1772970916487,2.76628887,1952.2,1950.9,3.5606435]
[1772970916882,2.76628887,1952.1,1950.9,3.5606435]
[1772970917284,2.76628887,1951.9,1950.9,3.5606435]
[1772970917588,2.78396016,1951.7,1950.9,3.5606435]
[1772970919285,2.77506347,1952.2,1950.9,3.5606435]
[1772970919683,2.80105559,1952.1,1950.9,3.5606435]
[1772970919989,2.80105559,1951.9,1950.9,3.5606435]
[1772970920380,2.79215535,1951.7,1950.9,3.5606435]
[1772970922090,2.79215535,1951.7,1951.1,3.5606435]
[1772970944107,2.67912284,1952.2,1951.1,3.5606435]
[1772970944506,2.67073987,1952.1,1951.2,22.63410698]
[1772970944909,2.67073987,1951.9,1951.2,22.63410698]
[1772970945410,2.67073987,1951.7,1951.3,3.45610698]
[1772970945611,2.67073987,1951.7,1951.2,19.178]
[1772970945612,2.67073987,1951.7,1951.2,22.63410698]
[1772970946212,2.67073987,1951.7,1951.3,3.45610698]
[1772970947707,2.67073987,1951.7,1950.8,16.00458602]
[1772970947910,2.67073987,1951.7,1951.0,3.45610698]
[1772970950615,2.67073987,1951.7,1950.8,3.45610698]
[1772970950814,2.62533853,1951.5,1950.8,19.194]
[1772970951009,2.62533853,1951.5,1950.9,3.45610698]
[1772970951210,0.25616,1952.0,1950.9,3.45610698]
[1772970951211,2.62533853,1951.3,1950.9,3.45610698]
[1772970955915,2.83646767,1951.8,1950.9,3.45610698]
[1772970956316,2.83646767,1951.7,1950.9,3.45610698]
[1772970957419,2.79571056,1952.1,1950.9,3.45610698]
[1772970957815,2.79571056,1951.8,1950.9,3.45610698]
[1772970962325,2.79571056,1951.8,1951.1,3.45610698]
[1772970972939,6.71749559,1952.3,1951.1,3.45610698]
[1772970973137,2.74920899,1952.2,1951.1,3.45610698]
[1772970973337,2.74920899,1952.1,1951.1,3.45610698]
[1772970973639,5.46016363,1952.0,1951.1,3.45610698]
[1772970973837,2.73982027,1951.9,1951.1,3.45610698]
[1772970975240,2.72812433,1952.2,1951.1,3.45610698]
[1772970975431,2.72812433,1952.2,1951.3,3.19026644]
[1772970975635,2.71830327,1952.1,1951.4,3.19026644]
[1772970983444,0.00449559,1952.3,1951.4,3.19026644]
[1772970983445,2.68409229,1952.2,1951.4,3.19026644]
[1772970987152,0.00449559,1952.3,1951.4,3.19026644]
[1772970987355,2.43712064,1952.3,1951.4,3.19026644]
[1772970989056,2.43712064,1952.3,1951.5,3.19026644]
[1772970995456,2.43712064,1952.3,1951.6,3.07291239]
[1772971001567,2.31331529,1952.1,1951.2,3.07291239]
[1772971004873,2.28477702,1952.2,1951.2,3.07291239]
[1772971005375,2.28477702,1952.1,1951.2,3.07291239]
[1772971010172,2.26799674,1952.3,1951.2,3.07291239]
[1772971010376,2.26799674,1952.3,1951.3,3.07291239]
[1772971010676,2.26799674,1952.3,1951.5,3.07291239]
[1772971016775,2.27588117,1952.1,1951.5,3.07291239]
[1772971026192,2.14135551,1952.2,1951.5,3.07291239]
[1772971026593,7.52982617,1952.2,1951.5,3.07291239]
[1772971029197,2.11410424,1952.1,1951.5,3.07291239]
[1772971036003,2.06807942,1952.3,1951.5,3.07291239]
[1772971036302,2.06358383,1952.1,1951.2,3.09413103]
[1772971036605,5.79589613,1952.0,1951.2,3.09413103]
[1772971036801,2.05445943,1951.9,1951.2,3.09413103]
[1772971040398,0.00449559,1952.3,1951.2,3.09413103]
[1772971040606,2.01609332,1952.2,1951.2,3.09413103]
[1772971040803,2.01609332,1952.1,1951.2,3.09413103]
[1772971041102,2.01609332,1951.9,1951.2,3.09413103]
[1772971046207,1.96276138,1951.7,1951.0,3.09413103]
[1772971053618,1.81225102,1952.2,1951.0,3.09413103]
[1772971054016,1.81225102,1952.1,1951.0,3.09413103]
[1772971054320,5.60765249,1952.0,1951.0,3.09413103]
[1772971054515,1.80401759,1951.9,1951.0,3.09413103]
[1772971055014,7.42549,1951.8,1951.0,3.09413103]
[1772971055514,1.80401759,1951.8,1951.0,3.09413103]
[1772971074533,0.26061559,1952.3,1951.0,3.09413103]
[1772971074534,1.6865429,1952.2,1951.0,3.09413103]
[1772971074934,1.6865429,1952.1,1951.0,3.09413103]
[1772971075238,5.78794755,1952.0,1951.0,3.09413103]
[1772971075441,1.6865429,1951.9,1951.0,3.09413103]
[1772971089252,1.62434977,1952.2,1951.0,3.09413103]
[1772971089657,1.60997277,1952.1,1951.1,2.71098486]
[1772971101767,1.58672982,1952.2,1951.1,2.71098486]
[1772971103566,1.58672982,1952.2,1951.2,2.71098486]
[1772971103870,1.58672982,1952.2,1951.4,2.71098486]
[1772971120078,1.58672982,1952.2,1951.4,22.07398486]
[1772971120481,1.58672982,1952.2,1951.5,2.65726369]
[1772971120879,1.58672982,1952.2,1951.0,16.00458602]
[1772971120880,1.46892396,1952.0,1951.3,2.65726369]
[1772971121185,1.46892396,1951.8,1950.9,2.65726369]
[1772971121582,1.46086165,1951.6,1950.9,2.65726369]
[1772971121977,0.84194362,1951.5,1950.9,2.65726369]
[1772971122180,1.46086165,1951.4,1950.9,2.65726369]
[1772971128685,1.46086165,1951.4,1950.8,2.65726369]
[1772971133190,1.25590567,1951.2,1950.8,2.65726369]
[1772971135082,1.24082147,1951.9,1950.8,2.65726369]
[1772971135487,1.21965601,1951.8,1950.8,2.65726369]
[1772971135786,5.58467376,1951.7,1950.8,2.65726369]
[1772971135986,1.21965601,1951.6,1950.8,2.65726369]
[1772971136396,1.21965601,1951.4,1950.8,2.65726369]
[1772971136789,6.89583334,1951.3,1950.8,2.65726369]
[1772971137189,1.21418223,1951.3,1950.8,2.65726369]
[1772971137993,1.2014702,1951.1,1950.5,2.65726369]
[1772971146302,1.1294759,1950.9,1950.5,2.65726369]
[1772971146504,1.13306915,1950.9,1950.5,2.65726369]
[1772971147400,1.13306915,1950.9,1950.4,2.53970807]
[1772971148800,1.11347682,1950.7,1950.3,2.53506994]
[1772971149605,0.00359325,1950.9,1950.3,2.53506994]
[1772971150007,0.00359325,1950.9,1950.3,2.53895672]
[1772971177711,0.94640615,1951.5,1950.4,2.54410305]
[1772971178210,0.94640615,1951.4,1950.4,2.54410305]
[1772971178611,6.6746146,1951.3,1950.4,2.54410305]
[1772971179214,0.94211403,1951.2,1950.4,2.54410305]
[1772971179811,6.84669505,1951.1,1950.4,2.54410305]
[1772971180213,0.9263074,1951.1,1950.4,2.54410305]
[1772971180614,0.92184731,1951.2,1950.4,2.54410305]
[1772971181116,5.80035935,1951.1,1950.4,2.54410305]
[1772971187226,6.7055474,1951.1,1950.4,2.54410305]
[1772971188324,0.90848467,1951.0,1950.4,2.54410305]
[1772971194429,0.91785685,1950.8,1950.2,2.54410305]
[1772971194931,6.52403896,1950.7,1950.2,2.54410305]